[Event "Live Chess"]
[Site "Chess.com"]
[Date "2023.05.20"]
[Round "-"]
[White "OSmith06"]
[Black "bedsdrout"]
[Result "1-0"]
[WhiteElo "1708"]
[BlackElo "377"]
[TimeControl "300"]
[EndTime "11:48:59 PDT"]
[Termination "OSmith06 won by checkmate"]

1. e4 {[%clk 0:04:58.6]} 1... e5 {[%clk 0:04:58.2]} 2. Nf3 {[%clk 0:04:57.8]}
2... Bc5 {[%clk 0:04:55.1]} 3. d4 {[%clk 0:04:57]} 3... Bb6 {[%clk 0:04:50.7]}
4. Nxe5 {[%clk 0:04:50.2]} 4... Qh4 {[%clk 0:04:35]} 5. Nc3 {[%clk 0:04:38.8]}
5... Nc6 {[%clk 0:04:32.4]} 6. Nf3 {[%clk 0:04:27.9]} 6... Qf6 {[%clk
0:04:26.2]} 7. Bg5 {[%clk 0:04:21.9]} 7... Qg6 {[%clk 0:04:22.4]} 8. d5 {[%clk
0:04:04.9]} 8... Na5 {[%clk 0:04:09.7]} 9. Bd3 {[%clk 0:04:00]} 9... d6 {[%clk
0:03:49.3]} 10. e5 {[%clk 0:03:48.7]} 10... dxe5 {[%clk 0:03:37.7]} 11. Bxg6
{[%clk 0:03:47.2]} 11... Bg4 {[%clk 0:03:33.6]} 12. Be4 {[%clk 0:03:30.4]} 12...
f6 {[%clk 0:03:15.7]} 13. h3 {[%clk 0:03:29]} 13... O-O-O {[%clk 0:03:12.9]} 14.
hxg4 {[%clk 0:03:27.9]} 14... fxg5 {[%clk 0:02:57.9]} 15. Bf5+ {[%clk
0:03:23.4]} 15... Kb8 {[%clk 0:02:53.1]} 16. Nxg5 {[%clk 0:03:22.6]} 16... Ne7
{[%clk 0:02:37.4]} 17. Nf7 {[%clk 0:03:21.3]} 17... Nxd5 {[%clk 0:02:26.8]} 18.
Nxd5 {[%clk 0:03:18.8]} 18... c6 {[%clk 0:01:52.7]} 19. Nxd8 {[%clk 0:03:15.1]}
19... cxd5 {[%clk 0:01:47.6]} 20. Qxd5 {[%clk 0:03:11.1]} 20... Rxd8 {[%clk
0:01:42.1]} 21. Qxe5+ {[%clk 0:03:10.2]} 21... Bc7 {[%clk 0:01:28.8]} 22. Qxg7
{[%clk 0:03:04.4]} 22... a6 {[%clk 0:01:19.8]} 23. Rxh7 {[%clk 0:03:03.2]} 23...
Ka7 {[%clk 0:01:01.5]} 24. Qxc7 {[%clk 0:03:01.2]} 24... Rd4 {[%clk 0:00:41.5]}
25. Qc5+ {[%clk 0:02:56.3]} 25... Kb8 {[%clk 0:00:32.3]} 26. Rh8+ {[%clk
0:02:52.1]} 26... Rd8 {[%clk 0:00:22.1]} 27. Rxd8# {[%clk 0:02:50.8]} 1-0

[Event "Live Chess"]
[Site "Chess.com"]
[Date "2023.05.20"]
[Round "-"]
[White "Delacorta"]
[Black "flyingpuffins"]
[Result "0-1"]
[WhiteElo "1389"]
[BlackElo "1964"]
[TimeControl "300"]
[EndTime "11:49:00 PDT"]
[Termination "flyingpuffins won by resignation"]

1. d4 {[%clk 0:04:56.7]} 1... d5 {[%clk 0:04:58.7]} 2. Nf3 {[%clk 0:04:55.6]}
2... Nf6 {[%clk 0:04:57.8]} 3. e3 {[%clk 0:04:54.9]} 3... e6 {[%clk 0:04:46.5]}
4. Bd3 {[%clk 0:04:53]} 4... Bd6 {[%clk 0:04:44.5]} 5. b3 {[%clk 0:04:51.7]}
5... b6 {[%clk 0:04:43.7]} 6. Bb2 {[%clk 0:04:51]} 6... Bb7 {[%clk 0:04:42.3]}
7. Nbd2 {[%clk 0:04:49.9]} 7... Nbd7 {[%clk 0:04:41]} 8. Ne5 {[%clk 0:04:48.1]}
8... c5 {[%clk 0:04:38.3]} 9. O-O {[%clk 0:04:43.9]} 9... Rc8 {[%clk 0:04:34.3]}
10. f4 {[%clk 0:04:41.4]} 10... cxd4 {[%clk 0:04:27]} 11. exd4 {[%clk 0:04:40]}
11... Ne4 {[%clk 0:04:25.1]} 12. Ndf3 {[%clk 0:04:06.3]} 12... f6 {[%clk
0:04:16.3]} 13. Nxd7 {[%clk 0:04:04.7]} 13... Qxd7 {[%clk 0:04:15.1]} 14. Nh4
{[%clk 0:03:57.9]} 14... f5 {[%clk 0:04:09.8]} 15. Qh5+ {[%clk 0:03:53.6]} 15...
Qf7 {[%clk 0:04:08.5]} 16. Qxf7+ {[%clk 0:03:52.5]} 16... Kxf7 {[%clk
0:04:08.4]} 17. Nf3 {[%clk 0:03:35.4]} 17... Bxf4 {[%clk 0:04:02.1]} 18. Ne5+
{[%clk 0:03:32.7]} 18... Bxe5 {[%clk 0:03:59.6]} 19. dxe5 {[%clk 0:03:32.6]}
19... g6 {[%clk 0:03:52.5]} 20. Ba3 {[%clk 0:03:24.3]} 20... Nc5 {[%clk
0:03:49.4]} 21. Rac1 {[%clk 0:02:49]} 21... Nxd3 {[%clk 0:03:43.7]} 22. cxd3
{[%clk 0:02:48.2]} 22... Rxc1 {[%clk 0:03:40.7]} 23. Rxc1 {[%clk 0:02:48.1]}
23... Rc8 {[%clk 0:03:29.3]} 24. Rxc8 {[%clk 0:02:45.7]} 24... Bxc8 {[%clk
0:03:29.2]} 25. d4 {[%clk 0:02:44.2]} 25... g5 {[%clk 0:03:21.8]} 26. Kf2 {[%clk
0:02:29.5]} 26... Kg6 {[%clk 0:03:20.1]} 27. h3 {[%clk 0:02:26.5]} 27... Kh5
{[%clk 0:03:17]} 28. Be7 {[%clk 0:02:08.5]} 28... g4 {[%clk 0:03:09.7]} 29.
hxg4+ {[%clk 0:01:54.4]} 29... Kxg4 {[%clk 0:03:02]} 30. g3 {[%clk 0:01:47]}
30... h5 {[%clk 0:02:52.1]} 31. b4 {[%clk 0:01:43.8]} 31... f4 {[%clk
0:02:50.6]} 32. gxf4 {[%clk 0:01:36.8]} 32... Kxf4 {[%clk 0:02:50.5]} 33. b5
{[%clk 0:01:35.4]} 33... Ke4 {[%clk 0:02:43.5]} 34. Bd6 {[%clk 0:01:20.4]} 34...
Kxd4 {[%clk 0:02:40]} 35. Bb8 {[%clk 0:01:20]} 35... a6 {[%clk 0:02:39]} 36. Ba7
{[%clk 0:01:18.6]} 36... axb5 {[%clk 0:02:37.1]} 37. Bxb6+ {[%clk 0:01:16.9]}
37... Kxe5 {[%clk 0:02:36.2]} 0-1

[Event "Live Chess"]
[Site "Chess.com"]
[Date "2023.05.20"]
[Round "-"]
[White "PantherCal"]
[Black "Pandreq"]
[Result "1/2-1/2"]
[WhiteElo "1775"]
[BlackElo "1284"]
[TimeControl "300"]
[EndTime "11:49:01 PDT"]
[Termination "Game drawn by stalemate"]

1. e4 {[%clk 0:04:49.7]} 1... Nf6 {[%clk 0:04:58.8]} 2. e5 {[%clk 0:04:48.9]}
2... Nd5 {[%clk 0:04:58.3]} 3. c4 {[%clk 0:04:48.1]} 3... Nb6 {[%clk 0:04:57.3]}
4. d4 {[%clk 0:04:48]} 4... d6 {[%clk 0:04:56.1]} 5. exd6 {[%clk 0:04:47.9]}
5... cxd6 {[%clk 0:04:55]} 6. Nf3 {[%clk 0:04:47.8]} 6... Nc6 {[%clk 0:04:52.9]}
7. Nc3 {[%clk 0:04:46.9]} 7... Bf5 {[%clk 0:04:51.7]} 8. Be3 {[%clk 0:04:46.8]}
8... e5 {[%clk 0:04:41.4]} 9. d5 {[%clk 0:04:45.4]} 9... Nb4 {[%clk 0:04:32.1]}
10. Rc1 {[%clk 0:04:35.1]} 10... Na6 {[%clk 0:04:22.9]} 11. a3 {[%clk
0:04:32.2]} 11... Be7 {[%clk 0:04:18]} 12. Bd3 {[%clk 0:04:30.6]} 12... Bxd3
{[%clk 0:04:15.6]} 13. Qxd3 {[%clk 0:04:30.5]} 13... Rc8 {[%clk 0:04:10.9]} 14.
O-O {[%clk 0:04:29]} 14... Nxc4 {[%clk 0:04:07.2]} 15. Bxa7 {[%clk 0:04:22.4]}
15... Nxb2 {[%clk 0:03:51.7]} 16. Qb5+ {[%clk 0:04:21]} 16... Qd7 {[%clk
0:03:36.4]} 17. Qxb2 {[%clk 0:04:17.9]} 17... O-O {[%clk 0:03:27.7]} 18. Be3
{[%clk 0:04:11.8]} 18... Nc5 {[%clk 0:03:24.3]} 19. Bxc5 {[%clk 0:04:05]} 19...
Rxc5 {[%clk 0:03:22.9]} 20. Rfd1 {[%clk 0:03:58.4]} 20... Rfc8 {[%clk
0:03:20.5]} 21. Ne4 {[%clk 0:03:54.7]} 21... Rc4 {[%clk 0:03:14.7]} 22. Ned2
{[%clk 0:03:36.7]} 22... R4c7 {[%clk 0:02:59.1]} 23. Nb3 {[%clk 0:03:18.6]}
23... Bf6 {[%clk 0:02:55.2]} 24. Qd2 {[%clk 0:03:11.6]} 24... e4 {[%clk
0:02:31.6]} 25. Nfd4 {[%clk 0:03:07.1]} 25... Rc4 {[%clk 0:02:24.1]} 26. Rxc4
{[%clk 0:02:50.3]} 26... Rxc4 {[%clk 0:02:22.2]} 27. Qa5 {[%clk 0:02:49.4]}
27... Bxd4 {[%clk 0:02:01.2]} 28. Nxd4 {[%clk 0:02:46.4]} 28... Ra4 {[%clk
0:01:40.3]} 29. Qc3 {[%clk 0:02:27.7]} 29... g6 {[%clk 0:01:30.5]} 30. Re1
{[%clk 0:02:13.5]} 30... Qg4 {[%clk 0:01:13.7]} 31. h3 {[%clk 0:02:08.1]} 31...
Qf4 {[%clk 0:01:04.1]} 32. Qc8+ {[%clk 0:01:51]} 32... Kg7 {[%clk 0:00:59.9]}
33. Ne2 {[%clk 0:01:46.3]} 33... Qd2 {[%clk 0:00:54.1]} 34. Qc3+ {[%clk
0:01:35.4]} 34... Qxc3 {[%clk 0:00:43.9]} 35. Nxc3 {[%clk 0:01:35.3]} 35... Rxa3
{[%clk 0:00:43.2]} 36. Nxe4 {[%clk 0:01:30.4]} 36... Rd3 {[%clk 0:00:39.7]} 37.
Nxd6 {[%clk 0:01:29.1]} 37... Rxd5 {[%clk 0:00:38.2]} 38. Nxb7 {[%clk
0:01:27.5]} 38... Rb5 {[%clk 0:00:34.8]} 39. Nd6 {[%clk 0:01:25.8]} 39... Rb6
{[%clk 0:00:33.7]} 40. Ne4 {[%clk 0:01:21.5]} 40... Re6 {[%clk 0:00:32.3]} 41.
Kf1 {[%clk 0:01:20.7]} 41... f5 {[%clk 0:00:26.7]} 42. Ng5 {[%clk 0:01:18.6]}
42... Rxe1+ {[%clk 0:00:23.4]} 43. Kxe1 {[%clk 0:01:18.5]} 43... Kf6 {[%clk
0:00:21.4]} 44. Nxh7+ {[%clk 0:01:16.7]} 44... Kg7 {[%clk 0:00:18.3]} 45. Ng5
{[%clk 0:01:16]} 45... Kf6 {[%clk 0:00:17.7]} 46. Nf3 {[%clk 0:01:15.9]} 46...
g5 {[%clk 0:00:16.6]} 47. Ke2 {[%clk 0:01:15.8]} 47... g4 {[%clk 0:00:14.6]} 48.
hxg4 {[%clk 0:01:15.7]} 48... fxg4 {[%clk 0:00:13.9]} 49. Ng1 {[%clk 0:01:15.6]}
49... Kf5 {[%clk 0:00:13.1]} 50. Ke3 {[%clk 0:01:15.5]} 50... Kg5 {[%clk
0:00:12]} 51. Ke4 {[%clk 0:01:14.6]} 51... Kh4 {[%clk 0:00:10.8]} 52. Kf4 {[%clk
0:01:13.7]} 52... Kh5 {[%clk 0:00:07.1]} 53. Ne2 {[%clk 0:01:12.7]} 53... Kh4
{[%clk 0:00:05]} 54. Ng3 {[%clk 0:01:12.6]} 1/2-1/2

[Event "Live Chess"]
[Site "Chess.com"]
[Date "2023.05.20"]
[Round "-"]
[White "Ayush_prahlad_Gupta"]
[Black "Ninifu"]
[Result "0-1"]
[WhiteElo "1791"]
[BlackElo "1989"]
[TimeControl "300"]
[EndTime "11:49:01 PDT"]
[Termination "Ninifu won by resignation"]

1. e4 {[%clk 0:04:57.4]} 1... d5 {[%clk 0:04:58.6]} 2. Nc3 {[%clk 0:04:56.8]}
2... Nf6 {[%clk 0:04:56.5]} 3. Nb1 {[%clk 0:04:56.7]} 3... Nxe4 {[%clk
0:04:54.6]} 4. d3 {[%clk 0:04:55.5]} 4... Nf6 {[%clk 0:04:53.2]} 5. Nf3 {[%clk
0:04:55.4]} 5... c5 {[%clk 0:04:50.9]} 6. Bd2 {[%clk 0:04:55.3]} 6... Nc6 {[%clk
0:04:50.2]} 7. Be2 {[%clk 0:04:55.2]} 7... e6 {[%clk 0:04:45.9]} 8. O-O {[%clk
0:04:55.1]} 8... Bd6 {[%clk 0:04:45.3]} 9. c4 {[%clk 0:04:54.4]} 9... O-O {[%clk
0:04:43.6]} 10. cxd5 {[%clk 0:04:53.1]} 10... Nxd5 {[%clk 0:04:42.4]} 11. Nc3
{[%clk 0:04:53]} 11... Nf4 {[%clk 0:04:35]} 12. Qc1 {[%clk 0:04:50.1]} 12...
Nxe2+ {[%clk 0:04:31.4]} 13. Nxe2 {[%clk 0:04:48.5]} 13... Be7 {[%clk
0:04:28.4]} 14. Qc2 {[%clk 0:04:42.6]} 14... b6 {[%clk 0:04:19.7]} 15. Ng3
{[%clk 0:04:41.5]} 15... Bb7 {[%clk 0:04:18.7]} 16. Qc3 {[%clk 0:04:40.5]} 16...
Bf6 {[%clk 0:04:12.5]} 17. Qc2 {[%clk 0:04:39.1]} 17... Nd4 {[%clk 0:04:03.6]}
18. Nxd4 {[%clk 0:04:37.1]} 18... Bxd4 {[%clk 0:04:02.5]} 19. Bc3 {[%clk
0:04:35.5]} 19... Qd5 {[%clk 0:03:55.6]} 20. Ne4 {[%clk 0:04:22.9]} 20... f5
{[%clk 0:03:46.1]} 21. Bxd4 {[%clk 0:04:21.8]} 21... cxd4 {[%clk 0:03:40.4]} 22.
f3 {[%clk 0:04:12.2]} 22... Rac8 {[%clk 0:03:38.1]} 23. Qe2 {[%clk 0:04:04.3]}
23... fxe4 {[%clk 0:03:36.4]} 24. fxe4 {[%clk 0:04:04.2]} 24... Qg5 {[%clk
0:03:30.8]} 25. Rf3 {[%clk 0:03:33.9]} 25... Rxf3 {[%clk 0:03:23.1]} 26. Qxf3
{[%clk 0:03:33.8]} 26... Qe3+ {[%clk 0:03:16.9]} 27. Qxe3 {[%clk 0:03:31]} 27...
dxe3 {[%clk 0:03:15.4]} 28. Re1 {[%clk 0:03:28.2]} 28... Rc2 {[%clk 0:03:14.6]}
29. Rxe3 {[%clk 0:03:27.6]} 29... Rxb2 {[%clk 0:03:06]} 30. d4 {[%clk 0:03:24]}
30... Rxa2 {[%clk 0:03:03.5]} 31. Rd3 {[%clk 0:03:20.7]} 31... Bxe4 {[%clk
0:03:01.3]} 0-1

[Event "Live Chess"]
[Site "Chess.com"]
[Date "2023.05.20"]
[Round "-"]
[White "JoshMcK"]
[Black "Tushinskiy"]
[Result "0-1"]
[WhiteElo "1537"]
[BlackElo "2116"]
[TimeControl "300"]
[EndTime "11:49:03 PDT"]
[Termination "Tushinskiy won by resignation"]

1. e4 {[%clk 0:04:58.4]} 1... e5 {[%clk 0:04:58.5]} 2. Nf3 {[%clk 0:04:56.3]}
2... d6 {[%clk 0:04:58.4]} 3. d4 {[%clk 0:04:52.5]} 3... Bg4 {[%clk 0:04:57.5]}
4. dxe5 {[%clk 0:04:50.1]} 4... Nd7 {[%clk 0:04:56.5]} 5. exd6 {[%clk
0:04:48.9]} 5... Bxd6 {[%clk 0:04:56.4]} 6. Be2 {[%clk 0:04:46.4]} 6... Qe7
{[%clk 0:04:55.2]} 7. O-O {[%clk 0:04:44.3]} 7... Ngf6 {[%clk 0:04:50.4]} 8. Re1
{[%clk 0:04:39]} 8... O-O-O {[%clk 0:04:47.6]} 9. Nc3 {[%clk 0:04:33.9]} 9... h5
{[%clk 0:04:45.6]} 10. Bg5 {[%clk 0:04:27.8]} 10... Bxf3 {[%clk 0:04:43.4]} 11.
Bxf3 {[%clk 0:04:26]} 11... Qe5 {[%clk 0:04:41.7]} 12. Bxf6 {[%clk 0:04:22.1]}
12... Qxh2+ {[%clk 0:04:39.5]} 13. Kf1 {[%clk 0:04:20.1]} 13... Nxf6 {[%clk
0:04:38.5]} 14. g3 {[%clk 0:04:10.2]} 14... Bxg3 {[%clk 0:04:34.5]} 15. Qe2
{[%clk 0:04:08.9]} 15... Bf4 {[%clk 0:04:29.4]} 16. Bg2 {[%clk 0:03:57.4]} 16...
h4 {[%clk 0:04:26.6]} 17. Qf3 {[%clk 0:03:55.4]} 17... h3 {[%clk 0:04:21.2]} 18.
Bh1 {[%clk 0:03:50]} 18... c6 {[%clk 0:04:19.9]} 19. Ne2 {[%clk 0:03:42.3]}
19... Bc7 {[%clk 0:04:14.5]} 20. Ng3 {[%clk 0:03:32.7]} 20... Bxg3 {[%clk
0:04:12.3]} 21. Qxg3 {[%clk 0:03:31.1]} 21... Qxg3 {[%clk 0:04:10.9]} 22. fxg3
{[%clk 0:03:31]} 22... Rd2 {[%clk 0:04:09.3]} 23. Re2 {[%clk 0:03:28.7]} 23...
Rxe2 {[%clk 0:04:04.6]} 24. Kxe2 {[%clk 0:03:28.6]} 24... Kd7 {[%clk 0:04:03.9]}
25. Rd1+ {[%clk 0:03:24.5]} 25... Ke6 {[%clk 0:04:02.9]} 26. Kf3 {[%clk
0:03:21.9]} 26... g5 {[%clk 0:03:58.1]} 27. g4 {[%clk 0:03:16.7]} 27... Nd7
{[%clk 0:03:56.5]} 28. Kg3 {[%clk 0:03:10.9]} 28... Ne5 {[%clk 0:03:54.9]} 29.
Rd2 {[%clk 0:03:06.9]} 29... Rh4 {[%clk 0:03:52.7]} 30. Bf3 {[%clk 0:03:02.7]}
30... h2 {[%clk 0:03:51]} 31. Bh1 {[%clk 0:02:55.3]} 31... Nxg4 {[%clk
0:03:49.3]} 32. Re2 {[%clk 0:02:39]} 32... Ne5 {[%clk 0:03:47.5]} 33. Rxh2
{[%clk 0:02:33]} 33... Rxh2 {[%clk 0:03:46.1]} 34. Kxh2 {[%clk 0:02:31.8]} 34...
Nc4 {[%clk 0:03:45.5]} 35. b3 {[%clk 0:02:30.2]} 35... Ne3 {[%clk 0:03:44.5]}
36. c4 {[%clk 0:02:27.8]} 36... Ke5 {[%clk 0:03:42.8]} 37. Kg3 {[%clk
0:02:26.5]} 37... f6 {[%clk 0:03:39.1]} 38. a4 {[%clk 0:02:23.4]} 38... Kd4
{[%clk 0:03:36.2]} 39. Kf3 {[%clk 0:02:20.8]} 39... a5 {[%clk 0:03:35]} 40. Ke2
{[%clk 0:02:15.2]} 40... c5 {[%clk 0:03:29.5]} 41. Kd2 {[%clk 0:02:09]} 41... b6
{[%clk 0:03:28.6]} 42. Bf3 {[%clk 0:02:06.5]} 42... g4 {[%clk 0:03:26.6]} 43.
Bh1 {[%clk 0:02:04.7]} 43... g3 {[%clk 0:03:25.9]} 44. Bf3 {[%clk 0:02:02.8]}
44... g2 {[%clk 0:03:25]} 0-1

[Event "Live Chess"]
[Site "Chess.com"]
[Date "2023.05.20"]
[Round "-"]
[White "VovaOvchar1990"]
[Black "bigedd"]
[Result "1-0"]
[WhiteElo "1214"]
[BlackElo "553"]
[TimeControl "300"]
[EndTime "11:49:04 PDT"]
[Termination "VovaOvchar1990 won by resignation"]

1. e4 {[%clk 0:04:57.1]} 1... c5 {[%clk 0:04:57.2]} 2. Bc4 {[%clk 0:04:56.3]}
2... e6 {[%clk 0:04:54.5]} 3. d4 {[%clk 0:04:53.9]} 3... Nc6 {[%clk 0:04:51.2]}
4. dxc5 {[%clk 0:04:52.4]} 4... Bxc5 {[%clk 0:04:47.9]} 5. Nf3 {[%clk
0:04:51.5]} 5... d5 {[%clk 0:04:43.5]} 6. exd5 {[%clk 0:04:50.1]} 6... exd5
{[%clk 0:04:42.5]} 7. Bb3 {[%clk 0:04:49.1]} 7... Qe7+ {[%clk 0:04:39.4]} 8. Qe2
{[%clk 0:04:45]} 8... Qxe2+ {[%clk 0:04:37.5]} 9. Kxe2 {[%clk 0:04:44]} 9... Nf6
{[%clk 0:04:34.5]} 10. Re1 {[%clk 0:04:42.4]} 10... O-O {[%clk 0:04:32.1]} 11.
Kf1 {[%clk 0:04:41.2]} 11... Bg4 {[%clk 0:04:27]} 12. Be3 {[%clk 0:04:08.5]}
12... Bxe3 {[%clk 0:03:52.4]} 13. Rxe3 {[%clk 0:04:06.4]} 13... Bxf3 {[%clk
0:03:51]} 14. Rxf3 {[%clk 0:04:04.9]} 14... Rfe8 {[%clk 0:03:50.1]} 15. Nc3
{[%clk 0:04:03]} 15... Rac8 {[%clk 0:03:47.5]} 16. Nxd5 {[%clk 0:03:55.4]} 16...
Nxd5 {[%clk 0:03:45.2]} 17. Bxd5 {[%clk 0:03:53.8]} 17... Nd4 {[%clk 0:03:40.7]}
18. Rxf7 {[%clk 0:03:43.2]} 18... Kh8 {[%clk 0:03:32.5]} 19. c3 {[%clk
0:03:37.2]} 19... Nc6 {[%clk 0:02:45.7]} 20. Rxb7 {[%clk 0:03:34.5]} 20... Red8
{[%clk 0:02:37.2]} 21. Bxc6 {[%clk 0:03:30.5]} 21... Rxc6 {[%clk 0:02:35.7]} 22.
Rxa7 {[%clk 0:03:28.9]} 22... Rb8 {[%clk 0:02:33.7]} 23. a4 {[%clk 0:03:17.5]}
23... h6 {[%clk 0:02:26.8]} 24. Rb1 {[%clk 0:03:09.5]} 24... Rxc3 {[%clk
0:02:18.5]} 25. bxc3 {[%clk 0:02:58.8]} 25... Rxb1+ {[%clk 0:02:16.8]} 26. Ke2
{[%clk 0:02:57.9]} 26... Rb2+ {[%clk 0:02:09.2]} 27. Kf3 {[%clk 0:02:56.4]}
27... Rc2 {[%clk 0:02:06.3]} 28. a5 {[%clk 0:02:54.5]} 28... Rxc3+ {[%clk
0:02:04.9]} 29. Ke2 {[%clk 0:02:53]} 29... Kg8 {[%clk 0:02:03.1]} 30. a6 {[%clk
0:02:49]} 30... Kf8 {[%clk 0:02:01.7]} 31. Ra8+ {[%clk 0:02:47.4]} 31... Ke7
{[%clk 0:01:59.3]} 32. a7 {[%clk 0:02:46.5]} 32... Kd7 {[%clk 0:01:51.8]} 33.
Rd8+ {[%clk 0:02:39.6]} 33... Kxd8 {[%clk 0:01:37.5]} 34. a8=Q+ {[%clk
0:02:37.6]} 34... Kd7 {[%clk 0:01:34.2]} 35. Qd5+ {[%clk 0:02:35]} 35... Ke7
{[%clk 0:01:25.8]} 36. Qe5+ {[%clk 0:02:33.6]} 1-0

[Event "Live Chess"]
[Site "Chess.com"]
[Date "2023.05.20"]
[Round "-"]
[White "HoarseyHorsey"]
[Black "apl_trainer"]
[Result "1-0"]
[WhiteElo "1369"]
[BlackElo "1597"]
[TimeControl "300"]
[EndTime "11:49:05 PDT"]
[Termination "HoarseyHorsey won by resignation"]

1. d4 {[%clk 0:04:58.6]} 1... Nf6 {[%clk 0:04:58]} 2. c4 {[%clk 0:04:57.7]} 2...
c5 {[%clk 0:04:56.8]} 3. d5 {[%clk 0:04:56.5]} 3... b5 {[%clk 0:04:55.6]} 4.
cxb5 {[%clk 0:04:50]} 4... a6 {[%clk 0:04:54]} 5. e3 {[%clk 0:04:48.9]} 5...
axb5 {[%clk 0:04:45.8]} 6. Bxb5 {[%clk 0:04:47.2]} 6... Bb7 {[%clk 0:04:40.8]}
7. Nc3 {[%clk 0:04:42.3]} 7... Qa5 {[%clk 0:04:10.4]} 8. Bd2 {[%clk 0:04:34.8]}
8... g6 {[%clk 0:03:58.5]} 9. a4 {[%clk 0:04:30.4]} 9... Bg7 {[%clk 0:03:56.9]}
10. e4 {[%clk 0:04:27.2]} 10... O-O {[%clk 0:03:52.2]} 11. Nf3 {[%clk
0:04:24.7]} 11... d6 {[%clk 0:03:50.6]} 12. O-O {[%clk 0:04:21.5]} 12... Na6
{[%clk 0:03:48]} 13. Qe2 {[%clk 0:04:09.4]} 13... Nc7 {[%clk 0:03:44.1]} 14. Bc4
{[%clk 0:03:57.3]} 14... Nd7 {[%clk 0:03:37.6]} 15. Nb5 {[%clk 0:03:35.4]} 15...
Qb6 {[%clk 0:03:36.2]} 16. a5 {[%clk 0:03:30.4]} 1-0

[Event "Live Chess"]
[Site "Chess.com"]
[Date "2023.05.20"]
[Round "-"]
[White "EdenHazard8"]
[Black "Greenbecker"]
[Result "1-0"]
[WhiteElo "2092"]
[BlackElo "1656"]
[TimeControl "300"]
[EndTime "11:49:07 PDT"]
[Termination "EdenHazard8 won by resignation"]

1. e4 {[%clk 0:04:58.6]} 1... e6 {[%clk 0:04:58.7]} 2. d4 {[%clk 0:04:57.4]}
2... d5 {[%clk 0:04:57.6]} 3. exd5 {[%clk 0:04:57.3]} 3... exd5 {[%clk
0:04:56.4]} 4. Bd3 {[%clk 0:04:57.2]} 4... Nf6 {[%clk 0:04:54.5]} 5. c3 {[%clk
0:04:57.1]} 5... Bd6 {[%clk 0:04:53.1]} 6. Nf3 {[%clk 0:04:57]} 6... O-O {[%clk
0:04:51.6]} 7. h3 {[%clk 0:04:56.7]} 7... Re8+ {[%clk 0:04:50.4]} 8. Be3 {[%clk
0:04:54.7]} 8... Bf4 {[%clk 0:04:48.5]} 9. Qe2 {[%clk 0:04:51.4]} 9... Bxe3
{[%clk 0:04:39.9]} 10. fxe3 {[%clk 0:04:51.3]} 10... Qe7 {[%clk 0:04:37.3]} 11.
Kf2 {[%clk 0:04:48.5]} 11... Ne4+ {[%clk 0:04:33.7]} 12. Bxe4 {[%clk 0:04:46]}
12... dxe4 {[%clk 0:04:28.3]} 13. Ne5 {[%clk 0:04:36.4]} 13... Nd7 {[%clk
0:04:19.4]} 14. Nxd7 {[%clk 0:04:33.6]} 14... Bxd7 {[%clk 0:04:17.7]} 15. Rf1
{[%clk 0:04:32.9]} 15... a6 {[%clk 0:04:12.1]} 16. Nd2 {[%clk 0:04:30.6]} 16...
Qh4+ {[%clk 0:03:59.3]} 17. Kg1 {[%clk 0:04:29.1]} 17... Qg5 {[%clk 0:03:26]}
18. Kh2 {[%clk 0:04:17.1]} 18... Re6 {[%clk 0:03:05.4]} 19. Rf4 {[%clk
0:04:13.9]} 19... Rg6 {[%clk 0:02:58.3]} 20. Nxe4 {[%clk 0:04:11.6]} 20... Qd5
{[%clk 0:02:47.3]} 21. c4 {[%clk 0:04:09.1]} 21... Qc6 {[%clk 0:02:37.4]} 22.
Raf1 {[%clk 0:04:07]} 22... f5 {[%clk 0:02:29.6]} 23. Nc5 {[%clk 0:04:04.5]}
23... Re8 {[%clk 0:02:22.6]} 24. Nxd7 {[%clk 0:04:01.8]} 24... Qxd7 {[%clk
0:02:14.2]} 25. Qf3 {[%clk 0:04:00.1]} 25... Rf6 {[%clk 0:01:57.4]} 26. Qg3
{[%clk 0:03:19.4]} 26... Rg6 {[%clk 0:01:48.3]} 27. Qf3 {[%clk 0:03:13.1]} 27...
Rf6 {[%clk 0:01:37.5]} 28. Qf2 {[%clk 0:02:57.9]} 28... Qe6 {[%clk 0:01:26.9]}
29. Re1 {[%clk 0:02:51.1]} 29... c6 {[%clk 0:01:24.2]} 30. Qd2 {[%clk
0:02:47.9]} 30... g6 {[%clk 0:01:19.4]} 31. Qc3 {[%clk 0:02:43.7]} 31... Qe7
{[%clk 0:01:11.7]} 32. d5 {[%clk 0:02:40.2]} 32... cxd5 {[%clk 0:01:07.6]} 33.
cxd5 {[%clk 0:02:40.1]} 33... Qe5 {[%clk 0:01:00.8]} 34. Qxe5 {[%clk 0:02:37.9]}
34... Rxe5 {[%clk 0:00:59.2]} 35. Rd4 {[%clk 0:02:34.4]} 35... Rd6 {[%clk
0:00:58.1]} 36. Rc1 {[%clk 0:02:32.5]} 36... Rexd5 {[%clk 0:00:53.9]} 37. Rxd5
{[%clk 0:02:31.2]} 37... Rxd5 {[%clk 0:00:52.8]} 38. Rc7 {[%clk 0:02:30.9]}
38... Rb5 {[%clk 0:00:51.5]} 39. b3 {[%clk 0:02:28.8]} 39... h6 {[%clk
0:00:48.2]} 40. Kg3 {[%clk 0:02:27.1]} 40... a5 {[%clk 0:00:44.8]} 41. Kf4
{[%clk 0:02:23.1]} 41... g5+ {[%clk 0:00:41.7]} 42. Kf3 {[%clk 0:02:21.8]} 42...
b6 {[%clk 0:00:39.2]} 43. g4 {[%clk 0:02:20.4]} 43... fxg4+ {[%clk 0:00:36.5]}
44. Kxg4 {[%clk 0:02:19.8]} 44... Re5 {[%clk 0:00:32.9]} 45. Kh5 {[%clk
0:02:18.8]} 45... Rxe3 {[%clk 0:00:31.5]} 46. Kg6 {[%clk 0:02:17]} 46... Re6+
{[%clk 0:00:29.3]} 47. Kf5 {[%clk 0:02:16.5]} 47... Re8 {[%clk 0:00:27.1]} 48.
Rc6 {[%clk 0:02:12.4]} 48... Rf8+ {[%clk 0:00:25.5]} 49. Kg6 {[%clk 0:02:10.9]}
49... Kh8 {[%clk 0:00:21.6]} 50. Kxh6 {[%clk 0:02:09.6]} 50... Rg8 {[%clk
0:00:20.9]} 51. Rxb6 {[%clk 0:02:07.5]} 51... Rf8 {[%clk 0:00:18.3]} 52. Kxg5
{[%clk 0:02:04.7]} 1-0

[Event "Live Chess"]
[Site "Chess.com"]
[Date "2023.05.20"]
[Round "-"]
[White "TheSmoulderingMaster"]
[Black "ameetghasi100"]
[Result "0-1"]
[WhiteElo "1742"]
[BlackElo "2704"]
[TimeControl "300"]
[EndTime "11:49:16 PDT"]
[Termination "ameetghasi100 won by resignation"]

1. e4 {[%clk 0:04:59.3]} 1... c5 {[%clk 0:04:59.8]} 2. Nf3 {[%clk 0:04:57.9]}
2... d6 {[%clk 0:04:54.8]} 3. d4 {[%clk 0:04:56.8]} 3... cxd4 {[%clk 0:04:54.6]}
4. Nxd4 {[%clk 0:04:56.2]} 4... Nf6 {[%clk 0:04:53.4]} 5. Nc3 {[%clk 0:04:55.5]}
5... a6 {[%clk 0:04:49.6]} 6. Be3 {[%clk 0:04:53.8]} 6... g6 {[%clk 0:04:48.1]}
7. f3 {[%clk 0:04:52]} 7... Bg7 {[%clk 0:04:47.4]} 8. Qd2 {[%clk 0:04:51.1]}
8... h5 {[%clk 0:04:45.9]} 9. O-O-O {[%clk 0:04:49.7]} 9... Nbd7 {[%clk
0:04:42.7]} 10. h4 {[%clk 0:04:47.9]} 10... b5 {[%clk 0:04:40.5]} 11. Be2 {[%clk
0:04:46.5]} 11... Bb7 {[%clk 0:04:39.4]} 12. g4 {[%clk 0:04:44.8]} 12... hxg4
{[%clk 0:04:37.8]} 13. fxg4 {[%clk 0:04:43.4]} 13... b4 {[%clk 0:04:37.2]} 14.
Nd5 {[%clk 0:04:41.7]} 14... Nxe4 {[%clk 0:04:36.3]} 15. Qd3 {[%clk 0:04:37.2]}
15... Bxd5 {[%clk 0:04:34.1]} 16. Bf3 {[%clk 0:04:36.7]} 16... Ndc5 {[%clk
0:04:32.7]} 0-1